fUSD/lending_fUSD_20241030
["ID","MTS","AMOUNT","RATE_DAILY","PERIOD"]
[341071256,1730329853640,-419.70833773,0.00044061,30]
[341071257,1730329853650,-500.0,0.00044061,30]
[341071258,1730329853659,-500.0,0.00044061,30]
[341071259,1730329853668,-500.0,0.00044061,30]
[341071260,1730329853680,-500.0,0.00044061,30]
[341071261,1730329853690,-277.16,0.00044061,30]
[341071262,1730329853701,-150.0,0.00044061,30]
[341071263,1730329853711,-534.63675622,0.00044061,30]
[341071264,1730329853721,-506.07342195,0.00044061,30]
[341071265,1730329853731,-150.0,0.00044061,30]
[341071266,1730329853741,-150.0,0.00044061,30]
[341071267,1730329853751,-150.0,0.00044061,30]
[341071268,1730329853761,-150.0,0.00044061,30]
[341071269,1730329853771,-514.86745397,0.00044061,30]
[341071270,1730329853780,-161.48,0.00044061,30]
[341071271,1730329853789,-535.64275175,0.00044061,30]
[341071272,1730329853798,-531.68552089,0.00044061,30]
[341071273,1730329853808,-500.0,0.00044061,30]
[341071274,1730329853817,-500.0,0.00044061,30]
[341071275,1730329853826,-500.0,0.00044061,30]
[341071276,1730329853835,-500.0,0.00044061,30]
[341071277,1730329853845,-504.80401168,0.00044061,30]
[341071278,1730329853854,-500.0,0.00044061,30]
[341071279,1730329853863,-532.77348787,0.00044061,30]
[341071280,1730329853872,-500.0,0.00044061,30]
[341071281,1730329853881,-500.0,0.00044061,30]
[341071282,1730329853890,-500.0,0.00044061,30]
[341071283,1730329853900,-288.35,0.00044061,30]
[341071284,1730329853909,-210.49832348,0.00044061,30]
[341071285,1730329853919,-500.0,0.00044061,30]
[341071286,1730329853929,-500.0,0.00044061,30]
[341071287,1730329853940,-500.0,0.00044061,30]
[341071288,1730329853951,-184.08666469,0.00044061,30]
[341071289,1730329853961,-500.0,0.00044061,30]
[341071290,1730329853971,-500.0,0.00044061,30]
[341071291,1730329853980,-527.47307306,0.00044061,30]
[341071292,1730329853990,-500.0,0.00044061,30]
[341071293,1730329853999,-594.97028327,0.00044061,30]
[341071294,1730329854008,-500.0,0.00044061,30]
[341071295,1730329854017,-164.3543609,0.00044061,30]
[341071296,1730329854026,-500.0,0.00044061,30]
[341071297,1730329854035,-500.0,0.00044061,30]
[341071298,1730329854046,-500.0,0.00044061,30]
[341071299,1730329854055,-524.5144751,0.00044061,30]
[341071300,1730329854063,-500.0,0.00044061,30]
[341071301,1730329854072,-530.45,0.00044061,30]
[341071302,1730329854081,-500.0,0.00044061,30]
[341071303,1730329854090,-500.0,0.00044061,30]
[341071304,1730329854099,-200.0,0.00044061,7]
[341071305,1730329854108,-200.0,0.00044061,7]
[341071306,1730329854118,-212.81220545,0.00044061,7]
[341071307,1730329854127,-569.28608328,0.00044061,30]
[341071308,1730329854136,-500.0,0.00044061,30]
[341071309,1730329854145,-500.0,0.00044061,30]
[341071310,1730329854154,-500.0,0.00044061,30]
[341071311,1730329854163,-500.0,0.00044061,30]
[341071312,1730329854172,-500.0,0.00044061,30]
[341071313,1730329854181,-518.64016187,0.00044061,30]
[341071314,1730329854190,-232.5609125,0.00044061,30]
[341071315,1730329854199,-507.49136355,0.00044061,30]
[341071316,1730329854208,-500.0,0.00044061,30]
[341071317,1730329854218,-500.0,0.00044061,30]
[341071318,1730329854227,-500.0,0.00044061,30]
[341071319,1730329854237,-500.0,0.00044061,30]
[341071320,1730329854247,-500.0,0.00044061,30]
[341071321,1730329854256,-500.0,0.00044061,30]
[341071322,1730329854266,-500.0,0.00044061,30]
[341071323,1730329854275,-500.0,0.00044061,30]
[341071324,1730329854285,-500.0,0.00044061,30]
[341071325,1730329854295,-500.0,0.00044061,30]
[341071326,1730329854305,-500.0,0.00044061,30]
[341071327,1730329854315,-500.0,0.00044061,30]
[341071328,1730329854325,-165.10616457,0.00044061,30]
[341071329,1730329854335,-500.0,0.00044061,30]
[341071330,1730329854345,-500.0,0.00044061,30]
[341071331,1730329854353,-500.0,0.00044061,30]
[341071332,1730329854362,-540.40026593,0.00044061,30]
[341071333,1730329854371,-500.0,0.00044061,30]
[341071334,1730329854381,-500.0,0.00044061,30]
[341071335,1730329854390,-559.89564785,0.00044061,30]
[341071336,1730329854399,-519.47964567,0.00044061,30]
[341071337,1730329854409,-500.0,0.00044061,30]
[341071338,1730329854418,-324.66759994,0.00044061,30]
[341071339,1730329854427,-500.0,0.00044061,30]
[341071340,1730329854437,-572.72953642,0.00044061,30]
[341071341,1730329854446,-500.0,0.00044061,30]
[341071342,1730329854456,-500.0,0.00044061,30]
[341071343,1730329854467,-500.0,0.00044061,30]
[341071344,1730329854476,-500.0,0.00044061,30]
[341071345,1730329854485,-509.45561146,0.00044061,30]
[341071346,1730329854494,-1868.37,0.00044061,30]
[341071347,1730329854503,-1868.37,0.00044061,30]
[341071348,1730329854512,-1868.37,0.00044061,30]
[341071349,1730329854522,-1868.37,0.00044061,30]
[341071350,1730329854531,-1868.37,0.00044061,30]
[341071351,1730329854540,-1868.37,0.00044061,30]
[341071352,1730329854549,-1868.37,0.00044061,30]
[341071353,1730329854559,-1868.37,0.00044061,30]
[341071354,1730329854568,-1868.37,0.00044061,30]
[341071355,1730329854577,-511.40693127,0.00044061,30]
[341071356,1730329854586,-1868.37,0.00044061,30]
[341071357,1730329854595,-1868.37,0.00044061,30]
[341071358,1730329854604,-524.6,0.00044061,30]
[341071359,1730329854613,-1868.37,0.00044061,30]
[341071360,1730329854622,-1868.37,0.00044061,30]
[341071361,1730329854632,-1868.37,0.00044061,30]
[341071362,1730329854641,-1868.37,0.00044061,30]
[341071363,1730329854650,-1868.37,0.00044061,30]
[341071364,1730329854659,-1868.37,0.00044061,30]
[341071365,1730329854668,-500.0,0.00044061,30]
[341071366,1730329854677,-1868.37,0.00044061,30]
[341071367,1730329854686,-1868.37,0.00044061,30]
[341071368,1730329854695,-1868.37,0.00044061,30]
[341071369,1730329854704,-1868.37,0.00044061,30]
[341071370,1730329854714,-1868.37,0.00044061,30]
[341071371,1730329854723,-1868.37,0.00044061,30]
[341071372,1730329854732,-1868.37,0.00044061,30]
[341071373,1730329854741,-500.0,0.00044061,30]
[341071374,1730329854751,-500.0,0.00044061,30]
[341071375,1730329854759,-266.61493748,0.00044061,30]
[341071376,1730329854768,-500.0,0.00044061,30]
[341071377,1730329854777,-166.06,0.00044061,30]
[341071378,1730329854786,-549.34519979,0.00044061,30]
[341071379,1730329854795,-500.0,0.00044061,30]
[341071380,1730329854803,-500.0,0.00044061,30]
[341071381,1730329854812,-509.44653849,0.00044061,30]
[341071382,1730329854821,-593.72355226,0.00044061,30]
[341071383,1730329854830,-500.0,0.00044061,30]
[341071384,1730329854839,-500.0,0.00044061,30]
[341071385,1730329854848,-500.0,0.00044061,30]
[341071386,1730329854859,-500.0,0.00044061,30]
[341071387,1730329854867,-500.0,0.00044061,30]
[341071388,1730329854877,-500.0,0.00044061,30]
[341071389,1730329854886,-185.91,0.00044061,30]
[341071390,1730329854895,-579.65,0.00044061,30]
[341071391,1730329854904,-500.0,0.00044061,30]
[341071392,1730329854914,-255.84135596,0.00044061,30]
[341071393,1730329854923,-505.51939374,0.00044061,30]
[341071394,1730329854932,-299.33979623,0.00044061,30]
[341071395,1730329854941,-500.0,0.00044061,30]
[341071396,1730329854950,-500.0,0.00044061,30]
[341071397,1730329854959,-241.23,0.00044061,30]
[341071398,1730329854968,-500.0,0.00044061,30]
[341071399,1730329854977,-208.02357102,0.00044061,30]
[341071400,1730329854986,-511.01397062,0.00044061,30]
[341071401,1730329854995,-500.0,0.00044061,30]
[341071402,1730329855004,-367.3718043,0.00044061,30]
[341071403,1730329855013,-508.24916178,0.00044061,30]
[341071404,1730329855022,-500.0,0.00044061,30]
[341071405,1730329855031,-455.87179659,0.00044061,30]
[341071406,1730329855040,-506.75027449,0.00044061,30]
[341071407,1730329855054,-500.0,0.00044061,30]
[341071408,1730329855063,-506.15607751,0.00044061,30]
[341071409,1730329855071,-545.79396862,0.00044061,30]
[341071410,1730329855080,-500.0,0.00044061,30]
[341071411,1730329855173,-500.0,0.00044061,30]
[341071412,1730329855183,-500.0,0.00044061,30]
[341071413,1730329855192,-541.60155731,0.00044061,30]
[341071414,1730329855201,-500.0,0.00044061,30]
[341071415,1730329855210,-271.84131771,0.00044061,30]
[341071416,1730329855219,-500.0,0.00044061,30]
[341071417,1730329855229,-520.41838206,0.00044061,30]
[341071418,1730329855238,-500.0,0.00044061,30]
[341071419,1730329855247,-500.0,0.00044061,30]
[341071420,1730329855256,-500.08947373,0.00044061,30]
[341071421,1730329855266,-573.46528754,0.00044061,30]
[341071422,1730329855276,-509.47528328,0.00044061,30]
[341071423,1730329855285,-518.828748,0.00044061,30]
[341071424,1730329855295,-500.0,0.00044061,30]
[341071425,1730329855305,-500.0,0.00044061,30]
[341071426,1730329855315,-500.0,0.00044061,30]
[341071427,1730329855325,-192.57119053,0.00044061,30]
[341071428,1730329855334,-161.76916818,0.00044061,30]
[341071429,1730329855344,-500.0,0.00044061,30]
[341071430,1730329855354,-500.0,0.00044061,30]
[341071431,1730329855364,-519.23264099,0.00044061,30]
[341071432,1730329855374,-500.0,0.00044061,30]
[341071433,1730329855384,-406.47,0.00044061,30]
[341071434,1730329855394,-500.0,0.00044061,30]
[341071435,1730329855404,-500.0,0.00044061,30]
[341071436,1730329855414,-500.0,0.00044061,30]
[341071437,1730329855424,-500.0,0.00044061,30]
[341071438,1730329855434,-532.61198184,0.00044061,30]
[341071439,1730329855443,-500.0,0.00044061,30]
[341071440,1730329855453,-500.0,0.00044061,30]
[341071441,1730329855462,-500.0,0.00044061,30]
[341071442,1730329855472,-500.0,0.00044061,30]
[341071443,1730329855481,-503.0,0.00044061,30]
[341071444,1730329855491,-279.78343894,0.00044061,30]
[341071445,1730329855501,-500.0,0.00044061,30]
[341071446,1730329855511,-568.84983807,0.00044061,30]
[341071447,1730329855521,-537.63872628,0.00044061,30]
[341071448,1730329855531,-500.1057933,0.00044061,30]
[341071449,1730329855540,-500.0,0.00044061,30]
[341071450,1730329855550,-500.0,0.00044061,30]
[341071451,1730329855559,-527.04858734,0.00044061,30]
[341071452,1730329855569,-534.53617276,0.00044061,30]
[341071453,1730329855578,-500.0,0.00044061,30]
[341071454,1730329855588,-522.05839018,0.00044061,30]
[341071455,1730329855597,-543.04404648,0.00044061,30]
[341071456,1730329855607,-500.0,0.00044061,30]
[341071457,1730329855617,-500.0,0.00044061,30]
[341071458,1730329855626,-526.85056883,0.00044061,30]
[341071459,1730329855635,-500.0,0.00044061,30]
[341071460,1730329855644,-512.25971358,0.00044061,30]
[341071461,1730329855654,-500.0,0.00044061,30]
[341071462,1730329855663,-500.0,0.00044061,30]
[341071463,1730329855672,-157.34227015,0.00044061,30]
[341071464,1730329855681,-500.0,0.00044061,30]
[341071465,1730329855690,-515.43404405,0.00044061,30]
[341071466,1730329855699,-500.0,0.00044061,30]
[341071467,1730329855709,-216.45,0.00044061,30]
[341071468,1730329855719,-500.0,0.00044061,30]
[341071469,1730329855728,-249.57463914,0.00044061,30]
[341071470,1730329855741,-361.34114923,0.00044061,30]
[341071471,1730329855750,-500.0,0.00044061,30]
[341071472,1730329855759,-500.00306749,0.00044061,30]
[341071473,1730329855768,-500.0,0.00044061,30]
[341071474,1730329855778,-559.20640261,0.00044061,30]
[341071475,1730329855787,-500.0,0.00044061,30]
[341071476,1730329855797,-596.67554272,0.00044061,30]
[341071477,1730329855806,-500.0,0.00044061,30]
[341071478,1730329855816,-500.0,0.00044061,30]
[341071479,1730329855826,-309.86,0.00044061,30]
[341071480,1730329855835,-568.55614779,0.00044061,30]
[341071481,1730329855845,-427.82766089,0.00044061,30]
[341071482,1730329855854,-500.0,0.00044061,30]
[341071483,1730329855864,-500.0,0.00044061,30]
[341071484,1730329855873,-500.0,0.00044061,30]
[341071485,1730329855883,-500.0,0.00044061,30]
[341071486,1730329855892,-500.0,0.00044061,30]
[341071487,1730329855902,-182.71993488,0.00044061,30]
[341071488,1730329855911,-500.0,0.00044061,30]
[341071489,1730329855920,-500.0,0.00044061,30]
[341071490,1730329855930,-528.08658908,0.00044061,30]
[341071491,1730329855940,-500.0,0.00044061,30]
[341071492,1730329855949,-500.0,0.00044061,30]
[341071493,1730329855959,-157.84,0.00044061,30]
[341071494,1730329855968,-520.17417759,0.00044061,30]
[341071495,1730329855978,-500.0,0.00044061,30]
[341071496,1730329855988,-558.00081785,0.00044061,30]
[341071497,1730329855998,-194.66243754,0.00044061,30]
[341071498,1730329856007,-500.0,0.00044061,30]
[341071499,1730329856017,-538.5758402,0.00044061,30]
[341071500,1730329856026,-500.0,0.00044061,30]
[341071501,1730329856035,-500.0,0.00044061,30]
[341071502,1730329856048,-500.0,0.00044061,30]
[341071503,1730329856057,-500.0,0.00044061,30]
[341071504,1730329856066,-500.0,0.00044061,30]
[341071505,1730329856076,-500.0,0.00044061,30]
[341071506,1730329856086,-500.0,0.00044061,30]
[341071507,1730329856096,-503.66960825,0.00044061,30]
[341071508,1730329856105,-500.0,0.00044061,30]
[341071509,1730329856115,-500.0,0.00044061,30]
[341071510,1730329856127,-500.0,0.00044061,30]
[341071511,1730329856137,-500.0,0.00044061,30]
[341071512,1730329856147,-500.0,0.00044061,30]
[341071513,1730329856156,-500.0,0.00044061,30]
[341071514,1730329856166,-582.08178889,0.00044061,30]
[341071515,1730329856174,-500.0,0.00044061,30]
[341071516,1730329856183,-564.92558479,0.00044061,30]
[341071517,1730329856193,-500.0,0.00044061,30]
[341071518,1730329856202,-534.46,0.00044061,30]
[341071519,1730329856215,-500.0,0.00044061,30]
[341071520,1730329856228,-500.0,0.00044061,30]
[341071521,1730329856241,-500.0,0.00044061,30]
[341071522,1730329856254,-500.0,0.00044061,30]
[341071523,1730329856265,-500.0,0.00044061,30]
[341071524,1730329856276,-447.79442658,0.00044061,30]
[341071525,1730329856289,-3124.06,0.00044061,30]
[341071526,1730329856301,-3124.06,0.00044061,30]
[341071527,1730329856314,-3124.06,0.00044061,30]
[341071528,1730329856327,-3124.06,0.00044061,30]
[341071529,1730329856340,-2000.0,0.00044061,120]
[341071530,1730329856353,-3124.06,0.00044061,30]
[341071531,1730329856365,-3124.06,0.00044061,30]
[341071532,1730329856379,-3124.06,0.00044061,30]
[341071533,1730329856391,-950.83672052,0.00044061,30]
[341071536,1730329885402,156.37,0.00015342,2]
[341071542,1730330134063,884.1099311,0.00025,2]
[341071545,1730330445136,156.36,0.00015342,2]
[341071546,1730330507318,150.0,0.000245,2]
[341071550,1730330708257,176615.5300689,0.00016,2]
[341071551,1730330708289,6557262.7361296,0.00016,2]
[341071552,1730330708325,1794272.06456193,0.00016,2]
[341071554,1730330730006,53670.38925159,0.000101,2]
[341071555,1730330741577,55248.69514812,0.0002,2]
[341071561,1730330821215,300.0,0.00019725,2]
[341071567,1730330885285,2433674.20170536,0.00015,2]
[341071599,1730331031794,-657.80572298,0.00023922,2]
[341071600,1730331031807,-3363.23390639,0.0002509,120]
[341071601,1730331031821,-265.91609361,0.0002509,120]
[341071602,1730331031831,-226.41735,0.0003174,2]
[341071603,1730331031841,-971.33609851,0.000319,2]
[341071604,1730331031852,-137.71620788,0.00032,2]
[341071605,1730331031997,-650.28379212,0.00032,2]
[341071606,1730331032006,-2102.91147756,0.0003287,2]
[341071607,1730331037788,-536.193945,0.0003287,2]
[341071608,1730331037799,-1980.58360728,0.0003287,2]
[341071609,1730331037809,-13980.50100766,0.0003287,2]
[341071610,1730331037999,-7733.6632288,0.0003287,2]
[341071611,1730331038010,-165.34639647,0.00034725,2]
[341071612,1730331038020,-274.39,0.00034725,2]
[341071613,1730331038030,-17224.84781094,0.00035,2]
[341071614,1730331038039,-200.0,0.00035756,2]
[341071615,1730331038049,-1999.99,0.000377,60]
[341071616,1730331038058,-737.92,0.000377,2]
[341071617,1730331038067,-812.25,0.00039623,2]
[341071618,1730331038077,-180.77,0.00039704,2]
[341071619,1730331038086,-157.77,0.0003976,2]
[341071620,1730331038095,-12302.55420619,0.000398,2]
[341071621,1730331038104,-200.0,0.00039969,2]
[341071622,1730331038113,-250.0,0.00040112,120]
[341071625,1730331038210,-23880.0,0.00040145,2]
[341071627,1730331038253,-1507.67,0.00040148,2]
[341071628,1730331038263,-157.83,0.00040235,120]
[341071629,1730331038272,-675.02,0.0004025,2]
[341071630,1730331038282,-319.0,0.0004071,2]
[341071631,1730331038292,-157.0,0.00041096,2]
[341071632,1730331038304,-150.0,0.00041164,2]
[341071633,1730331038315,-474.65,0.00041428,2]
[341071634,1730331038328,-250.0,0.00041513,2]
[341071635,1730331038337,-1852.42,0.00041513,2]
[341071636,1730331038347,-789.56,0.00041598,2]
[341071637,1730331038357,-300.0,0.00041628,2]
[341071638,1730331038366,-150.0,0.00041741,7]
[341071639,1730331038375,-150.0,0.00041742,2]
[341071640,1730331038385,-891.26,0.00041764,120]
[341071641,1730331038394,-512.0,0.00041817,2]
[341071642,1730331038404,-812.25,0.00041887,2]
[341071643,1730331038414,-200.0,0.000419,15]
[341071644,1730331038423,-500.0,0.00041942,2]
[341071645,1730331038432,-1237.04,0.00041947,2]
[341071646,1730331038441,-3.2226656,0.00042259,2]
[341071647,1730331038453,-306.18382576,0.00042259,2]
[341071649,1730331039767,-960.98350864,0.00042259,2]
[341071650,1730331039777,-150.0,0.00042264,2]
[341071651,1730331039786,-2500.0,0.0004228,2]
[341071652,1730331039795,-180.77,0.00042351,2]
[341071653,1730331039805,-169.60500027,0.0004237,2]
[341071654,1730331039815,-500.0,0.00042373,2]
[341071655,1730331039829,-439.528,0.00042374,64]
[341071656,1730331039841,-218.37593838,0.00042374,28]
[341071657,1730331039851,-310.08682313,0.00042374,2]
[341071658,1730331039861,-163.4277569,0.00042374,7]
[341071659,1730331039871,-176.11698715,0.00042374,18]
[341071660,1730331039881,-251.72648728,0.00042379,31]
[341071661,1730331039892,-171.18507684,0.00042379,31]
[341071662,1730331039901,-20938.19442141,0.0004238,2]
[341071663,1730331039915,-1102.50109782,0.0004238,2]
[341071664,1730331039927,-72531.20976601,0.0004238,2]
[341071665,1730331039988,-9747.90701975,0.0004238,2]
[341071666,1730331040000,-458.51182368,0.0004238,2]
[341071667,1730331040014,-9096.64373114,0.0004238,2]
[341071668,1730331040027,-8947.21879473,0.0004238,2]
[341071669,1730331040039,-8943.78386462,0.0004238,2]
[341071670,1730331040052,-9077.54866152,0.0004238,2]
[341071671,1730331040065,-8943.84023489,0.0004238,2]
[341071672,1730331040079,-727.35,0.0004238,2]
[341071673,1730331040090,-267.11999999,0.0004238,2]
[341071674,1730331040103,-704.00499967,0.0004238,2]
[341071675,1730331040122,-75596.12002818,0.0004238,2]
[341071681,1730331042904,-4129.41872442,0.0004238,2]
[341071682,1730331042917,-255.55486192,0.0004238,2]
[341071695,1730331046197,-693.68451783,0.0004238,2]
[341071696,1730331046209,-5157.25404212,0.0004238,2]
[341071729,1730331051997,150.0,0.00017605,2]
[341071732,1730331317131,150.0,0.00017605,2]
[341071733,1730331450680,550.0,0.00015,2]
[341071734,1730331451748,600.0,0.00017,2]
[341071735,1730331481834,300.0,0.00019725,2]
[341071771,1730332084324,158.87,0.00015342,2]
[341071788,1730332232107,-709.0,0.000287,2]
[341071789,1730332232116,-165.34639648,0.00035656,2]
[341071790,1730332232125,-163.94,0.00035756,120]
[341071791,1730332232134,-209.81,0.00038366,2]
[341071792,1730332232144,-731.02,0.00038791,2]
[341071793,1730332232153,-351.622,0.00039831,56]
[341071794,1730332232282,-2320.35,0.00039831,2]
[341071795,1730332232291,-792.25674105,0.00040467,2]
[341071796,1730332232303,-7033.89835756,0.00040467,2]
[341071797,1730332232316,-1252.36490139,0.00040467,2]
[341071798,1730332232325,-237.32,0.00040537,2]
[341071800,1730332232339,-150.0,0.00040541,7]
[341071802,1730332232355,-288.37,0.00040555,120]
[341071803,1730332232365,-1000.0,0.00040569,2]
[341071804,1730332232374,-928.53510381,0.00040589,2]
[341071809,1730332237957,-509.16789362,0.00040589,2]
[341071810,1730332237969,-618.74932003,0.00040589,2]
[341071811,1730332237982,-4997.43768254,0.00040589,2]
[341071812,1730332237993,-162.76,0.00040621,2]
[341071813,1730332238004,-180.77,0.00040683,2]
[341071814,1730332238015,-157.83,0.0004078,120]
[341071815,1730332238024,-731.02,0.00041055,2]
[341071816,1730332238034,-150.0,0.00041096,2]
[341071817,1730332238046,-157.0,0.00041096,2]
[341071818,1730332238057,-159.532354,0.000414,2]
[341071819,1730332238067,-300.0,0.00042177,2]
[341071820,1730332238077,-150.0,0.00042177,2]
[341071821,1730332238086,-1248.2176,0.00042227,2]
[341071822,1730332238097,-300.0,0.00042279,4]
[341071823,1730332238106,-322.68044337,0.0004228,2]
[341071824,1730332238119,-390.12455663,0.0004228,2]
[341071825,1730332238128,-281.4307,0.0004228,2]
[341071826,1730332238139,-1233.3539,0.0004228,2]
[341071827,1730332238149,-4759.83044036,0.0004228,2]
[341071828,1730332238160,-1019.83248483,0.0004228,2]
[341071829,1730332238171,-13443.75157481,0.0004228,2]
[341071830,1730332238183,-4941.5874,0.0004228,2]
[341071831,1730332238192,-1471.402,0.0004228,2]
[341071832,1730332238201,-2371.12693175,0.0004228,2]
[341071833,1730332238287,-13251.94490833,0.0004228,2]
[341071834,1730332238474,-102.20278123,0.0004228,2]
[341071835,1730332238486,-2663.19237869,0.0004228,2]
[341071836,1730332238495,-1000.0,0.0004228,2]
[341071837,1730332238504,-2013.7705,0.0004228,2]
[341071838,1730332238513,-310.08682313,0.0004228,2]
[341071839,1730332238522,-2500.0,0.0004228,2]
[341071840,1730332238531,-3628.50540275,0.00042327,30]
[341071841,1730332238543,-2043.19999995,0.00042327,30]
[341071842,1730332238554,-448.4845973,0.00042327,30]
[341071843,1730332238563,-575.26,0.0004237,30]
[341071844,1730332238576,-500.0,0.00042373,2]
[341071845,1730332238585,-500.60692687,0.00042373,10]
[341071846,1730332238595,-500.0,0.00042379,31]
[341071847,1730332238605,-421.5410299,0.00042379,31]
[341071848,1730332238615,-500.0,0.00042379,31]
[341071849,1730332238624,-277.76450178,0.00042379,31]
[341071850,1730332238634,-500.0,0.00042379,31]
[341071852,1730332238644,-500.0,0.00042379,31]
[341071854,1730332238653,-500.0,0.00042379,31]
[341071856,1730332238662,-502.09536571,0.00042379,31]
[341071857,1730332238671,-500.0,0.00042379,31]
[341071858,1730332238681,-500.0,0.00042379,31]
[341071859,1730332238690,-500.0,0.00042379,31]
[341071860,1730332238700,-500.0,0.00042379,31]
[341071861,1730332238709,-614.48234218,0.00042379,31]
[341071862,1730332238718,-500.0,0.00042379,31]
[341071863,1730332238728,-374.422588,0.00042379,31]
[341071864,1730332238738,-500.0,0.00042379,31]
[341071865,1730332238748,-500.0,0.00042379,31]
[341071866,1730332238757,-342.16142955,0.00042379,31]
[341071867,1730332238767,-500.0,0.00042379,31]
[341071868,1730332238777,-500.0,0.00042379,31]
[341071869,1730332238786,-500.0,0.00042379,31]
[341071870,1730332238796,-500.0,0.00042379,31]
[341071871,1730332238806,-500.0,0.00042379,31]
[341071872,1730332238815,-500.0,0.00042379,31]
[341071873,1730332238826,-500.0,0.00042379,31]
[341071874,1730332238836,-500.0,0.00042379,31]
[341071875,1730332238846,-500.0,0.00042379,31]
[341071876,1730332238856,-500.0,0.00042379,31]
[341071877,1730332238865,-500.0,0.00042379,31]
[341071878,1730332238875,-500.0,0.00042379,31]
[341071879,1730332238884,-500.0,0.00042379,31]
[341071880,1730332238893,-500.0,0.00042379,31]
[341071881,1730332238903,-500.0,0.00042379,31]
[341071882,1730332238912,-500.0,0.00042379,31]
[341071883,1730332238922,-235.0,0.00042379,31]
[341071884,1730332238932,-500.0,0.00042379,31]
[341071885,1730332238941,-500.0,0.00042379,31]
[341071886,1730332238950,-500.0,0.00042379,31]
[341071887,1730332238960,-500.0,0.00042379,31]
[341071888,1730332238969,-500.0,0.00042379,31]
[341071889,1730332238979,-500.0,0.00042379,31]
[341071890,1730332238989,-10000.0,0.00042379,7]
[341071891,1730332238998,-5052.02755514,0.0004238,17]
[341071892,1730332239007,-52016.01839836,0.0004238,16]
[341071893,1730332239019,-2994.43922409,0.0004238,16]
[341071894,1730332239917,-417.25218197,0.00041055,2]
[341071895,1730332239929,-844.46840723,0.00041055,2]
[341071896,1730332239941,-541.03376639,0.00041055,2]
[341071897,1730332239950,-310.73730189,0.0004238,16]
[341071898,1730332239962,-10682.73555237,0.0004238,16]
[341071899,1730332239973,-11809.42168032,0.0004238,16]
[341071900,1730332240045,-7338.74848344,0.0004238,16]
[341071901,1730332240056,-602.7973578,0.0004238,16]
[341071902,1730332240069,-7263.94408898,0.0004238,16]
[341071903,1730332240080,-15132.36096007,0.0004238,16]
[341071904,1730332240090,-68367.84302917,0.0004238,2]
[341071905,1730332240101,-1986.34492326,0.0004238,2]
[341071906,1730332240112,-1227.9599996,0.0004238,2]
[341071907,1730332240123,-400.075,0.0004238,2]
[341071908,1730332240135,-24080.97071843,0.0004238,2]
[341071909,1730332240146,-581.456,0.0004238,2]
[341071910,1730332240158,-243402.48308358,0.0004238,2]
[341071911,1730332240170,-1663.5002,0.0004238,2]
[341071912,1730332240181,-3441.32350153,0.0004238,2]
[341071913,1730332240192,-616.89321857,0.0004238,2]
[341071914,1730332240204,-2561.16436703,0.0004238,2]
[341071915,1730332240218,-373.91348834,0.0004238,2]
[341071916,1730332240229,-621.51461131,0.0004238,2]
[341071917,1730332240240,-701.66503495,0.0004238,2]
[341071918,1730332240251,-1787.55805162,0.0004238,2]
[341071919,1730332240285,-143166.69247219,0.0004238,2]
[341071920,1730332240296,-1932.69708526,0.0004238,2]
[341071921,1730332240308,-476.45777715,0.0004238,2]
[341071922,1730332240319,-722.19529931,0.0004238,2]
[341071923,1730332240330,-304.33735203,0.0004238,2]
[341071924,1730332240341,-123152.23738756,0.0004238,2]